[Event "*** Titled Tuesday Blitz"]
[Site "Chess.com"]
[Date "2019.09.03"]
[Round "4"]
[White "Alexander_Moskalenko"]
[Black "Orest_Vovk"]
[Result "1/2-1/2"]
[WhiteElo "2827"]
[BlackElo "2238"]
[TimeControl "180+2"]
[EndTime "15:57:05 PDT"]
[Termination "Game drawn by repetition"]

1. c4 {[%clk 0:03:01.9]} 1... g5 {[%clk 0:02:58.7]} 2. d4 {[%clk 0:03:00.1]}
2... h6 {[%clk 0:02:59.2]} 3. Nc3 {[%clk 0:03:01.4]} 3... Bg7 {[%clk 0:03:00.1]}
4. e3 {[%clk 0:03:01.3]} 4... c5 {[%clk 0:03:01.1]} 5. d5 {[%clk 0:03:01.5]}
5... Bxc3+ {[%clk 0:03:02]} 6. bxc3 {[%clk 0:03:02]} 6... d6 {[%clk 0:03:02.1]}
7. h4 {[%clk 0:02:59.2]} 7... g4 {[%clk 0:03:03]} 8. e4 {[%clk 0:02:59.6]} 8...
Qa5 {[%clk 0:03:02.9]} 9. Bd2 {[%clk 0:02:58.7]} 9... Nf6 {[%clk 0:03:03.8]} 10.
Bd3 {[%clk 0:02:58.4]} 10... Nbd7 {[%clk 0:03:04.4]} 11. Ne2 {[%clk 0:02:44.4]}
11... Ne5 {[%clk 0:03:04.2]} 12. Qc2 {[%clk 0:02:45.8]} 12... Nxd3+ {[%clk
0:02:58]} 13. Qxd3 {[%clk 0:02:46.1]} 13... Qa4 {[%clk 0:02:58.1]} 14. Bf4
{[%clk 0:02:41]} 14... Nh5 {[%clk 0:02:52.3]} 15. Bh2 {[%clk 0:02:25.9]} 15...
b6 {[%clk 0:02:24.3]} 16. e5 {[%clk 0:02:26.9]} 16... Ba6 {[%clk 0:02:25.3]} 17.
exd6 {[%clk 0:02:23.7]} 17... Qxc4 {[%clk 0:02:23.9]} 18. d7+ {[%clk 0:00:59.9]}
18... Kd8 {[%clk 0:02:19.2]} 19. Qxc4 {[%clk 0:00:46.8]} 19... Bxc4 {[%clk
0:02:19.8]} 20. Rd1 {[%clk 0:00:48.3]} 20... Kxd7 {[%clk 0:02:13.9]} 21. a3
{[%clk 0:00:46.9]} 21... Rhg8 {[%clk 0:01:36.3]} 22. Nf4 {[%clk 0:00:42.6]}
22... Nxf4 {[%clk 0:01:32.3]} 23. Bxf4 {[%clk 0:00:43.4]} 23... h5 {[%clk
0:01:27.3]} 24. Rd2 {[%clk 0:00:42.1]} 24... Rad8 {[%clk 0:01:20.7]} 25. Kd1
{[%clk 0:00:21.3]} 25... Kc8 {[%clk 0:01:15]} 26. Re1 {[%clk 0:00:21.8]} 26...
e6 {[%clk 0:01:00.7]} 27. dxe6 {[%clk 0:00:19.4]} 27... Rxd2+ {[%clk 0:00:58.4]}
28. Bxd2 {[%clk 0:00:20.6]} 28... Bxe6 {[%clk 0:01:00.1]} 29. Re5 {[%clk
0:00:22]} 29... Rh8 {[%clk 0:00:53]} 30. Bf4 {[%clk 0:00:21.3]} 30... Rd8+
{[%clk 0:00:48.5]} 31. Kc2 {[%clk 0:00:20.8]} 31... Rd5 {[%clk 0:00:49.4]} 32.
Rxd5 {[%clk 0:00:21.9]} 32... Bxd5 {[%clk 0:00:50.6]} 33. g3 {[%clk 0:00:23.1]}
33... Bc4 {[%clk 0:00:41.9]} 34. Be5 {[%clk 0:00:22.7]} 34... Kd7 {[%clk
0:00:40.7]} 35. Bb8 {[%clk 0:00:22.6]} 35... a6 {[%clk 0:00:41.4]} 36. Kd2
{[%clk 0:00:23]} 36... Kc6 {[%clk 0:00:35.1]} 37. Kc2 {[%clk 0:00:24]} 37... Kb5
{[%clk 0:00:28.3]} 38. Bc7 {[%clk 0:00:22.8]} 38... Be6 {[%clk 0:00:24]} 39. Bd8
{[%clk 0:00:23.6]} 39... Bf5+ {[%clk 0:00:20.1]} 40. Kb2 {[%clk 0:00:25.5]}
40... Kc6 {[%clk 0:00:18.7]} 41. Kc1 {[%clk 0:00:25.7]} 41... b5 {[%clk
0:00:19]} 42. Be7 {[%clk 0:00:26.2]} 42... Kd5 {[%clk 0:00:20]} 43. Kb2 {[%clk
0:00:23.7]} 43... Kc4 {[%clk 0:00:20.3]} 44. Bf8 {[%clk 0:00:24.1]} 44... a5
{[%clk 0:00:21.2]} 45. Be7 {[%clk 0:00:25]} 45... a4 {[%clk 0:00:22.5]} 46. Bf8
{[%clk 0:00:25.4]} 46... Be4 {[%clk 0:00:22.9]} 47. Be7 {[%clk 0:00:26.3]} 47...
Bf3 {[%clk 0:00:23]} 48. Bf8 {[%clk 0:00:27.3]} 48... Bd1 {[%clk 0:00:23.9]} 49.
Be7 {[%clk 0:00:28]} 49... Bb3 {[%clk 0:00:24.6]} 50. Bf8 {[%clk 0:00:29.1]}
50... Kd5 {[%clk 0:00:22.6]} 51. Be7 {[%clk 0:00:29.8]} 51... Bc4 {[%clk
0:00:23.7]} 52. Kc2 {[%clk 0:00:29.1]} 52... Bf1 {[%clk 0:00:21.8]} 53. Kb2
{[%clk 0:00:29.4]} 53... Bd3 {[%clk 0:00:22.1]} 54. Bf8 {[%clk 0:00:30.1]} 54...
f5 {[%clk 0:00:22.6]} 55. Be7 {[%clk 0:00:30.7]} 55... Be4 {[%clk 0:00:16.2]}
56. Bf8 {[%clk 0:00:30.5]} 56... Kc4 {[%clk 0:00:17.2]} 57. Be7 {[%clk
0:00:29.8]} 57... Bg2 {[%clk 0:00:18.3]} 58. Kc2 {[%clk 0:00:26.8]} 58... Bc6
{[%clk 0:00:17.5]} 59. Kb2 {[%clk 0:00:27.4]} 59... Kd5 {[%clk 0:00:17.6]} 60.
Bf8 {[%clk 0:00:28.1]} 60... Bd7 {[%clk 0:00:17.6]} 61. Kc2 {[%clk 0:00:28.2]}
61... Kc4 {[%clk 0:00:18.8]} 62. Kb2 {[%clk 0:00:28.9]} 62... Be6 {[%clk
0:00:19.9]} 63. Be7 {[%clk 0:00:29.6]} 63... Bd5 {[%clk 0:00:21.1]} 64. Bf8
{[%clk 0:00:30.2]} 64... Be4 {[%clk 0:00:22.2]} 65. Be7 {[%clk 0:00:30.8]} 65...
Bd3 {[%clk 0:00:21.8]} 66. Bf8 {[%clk 0:00:30.8]} 66... Kd5 {[%clk 0:00:22.9]}
67. Be7 {[%clk 0:00:31.2]} 67... Kc4 {[%clk 0:00:18.1]} 68. Bd6 {[%clk
0:00:31.1]} 68... Bf1 {[%clk 0:00:18.7]} 69. Be7 {[%clk 0:00:31.1]} 69... Bg2
{[%clk 0:00:19.6]} 70. Kc2 {[%clk 0:00:31.5]} 70... Bc6 {[%clk 0:00:20.2]} 71.
Kb2 {[%clk 0:00:31]} 71... Be8 {[%clk 0:00:21.2]} 72. Kc2 {[%clk 0:00:30.8]}
72... Bf7 {[%clk 0:00:21.5]} 73. Kb2 {[%clk 0:00:31.3]} 73... Bg6 {[%clk
0:00:23.1]} 74. Bd6 {[%clk 0:00:31.7]} 74... Kd5 {[%clk 0:00:24.2]} 75. Be7
{[%clk 0:00:32.2]} 75... c4 {[%clk 0:00:20.6]} 76. Kc1 {[%clk 0:00:19.4]} 76...
Ke4 {[%clk 0:00:20.1]} 77. Kd2 {[%clk 0:00:20.7]} 77... f4 {[%clk 0:00:19.7]}
78. Bd6 {[%clk 0:00:19.8]} 78... f3 {[%clk 0:00:18.9]} 79. Bb4 {[%clk
0:00:19.7]} 79... Bf5 {[%clk 0:00:17.1]} 80. Ba5 {[%clk 0:00:20.5]} 80... Be6
{[%clk 0:00:18.5]} 81. Bb4 {[%clk 0:00:22.4]} 81... Bd5 {[%clk 0:00:20.1]} 82.
Bc5 {[%clk 0:00:23]} 82... Bc6 {[%clk 0:00:21.5]} 83. Be3 {[%clk 0:00:24.2]}
83... Kd5 {[%clk 0:00:21.9]} 84. Bf4 {[%clk 0:00:24.9]} 84... Be8 {[%clk
0:00:19.5]} 85. Ke3 {[%clk 0:00:25]} 85... Bg6 {[%clk 0:00:18.6]} 86. Kd2 {[%clk
0:00:20.3]} 86... Bh7 {[%clk 0:00:16.7]} 87. Bh6 {[%clk 0:00:21.2]} 87... Bg6
{[%clk 0:00:16.3]} 88. Bg7 {[%clk 0:00:22.5]} 88... Bf5 {[%clk 0:00:17.4]} 89.
Ke3 {[%clk 0:00:23.7]} 89... Bg6 {[%clk 0:00:15.1]} 90. Bf8 {[%clk 0:00:24.8]}
90... Be8 {[%clk 0:00:15.3]} 91. Kf4 {[%clk 0:00:23.9]} 91... Bf7 {[%clk
0:00:15.6]} 92. Bb4 {[%clk 0:00:25.8]} 92... Be8 {[%clk 0:00:16.6]} 93. Kf5
{[%clk 0:00:26.7]} 93... Bd7+ {[%clk 0:00:17.1]} 94. Kf4 {[%clk 0:00:27.8]}
94... Be8 {[%clk 0:00:18.2]} 95. Ba5 {[%clk 0:00:23.5]} 95... Bd7 {[%clk
0:00:18.3]} 96. Bd8 {[%clk 0:00:23.9]} 96... Be8 {[%clk 0:00:19.2]} 97. Be7
{[%clk 0:00:24]} 97... Bd7 {[%clk 0:00:19.9]} 98. Bf8 {[%clk 0:00:25]} 98... Be8
{[%clk 0:00:20.9]} 99. Bb4 {[%clk 0:00:24.4]} 99... Bf7 {[%clk 0:00:21.5]} 100.
Kf5 {[%clk 0:00:24.6]} 100... Be8 {[%clk 0:00:21.1]} 101. Kf4 {[%clk 0:00:21.7]}
101... Bg6 {[%clk 0:00:20.8]} 102. Ba5 {[%clk 0:00:21.6]} 102... Be8 {[%clk
0:00:21.2]} 103. Bb4 {[%clk 0:00:22.4]} 1/2-1/2

[Event "*** Titled Tuesday Blitz"]
[Site "Chess.com"]
[Date "2019.09.03"]
[Round "4"]
[White "pedromartinez91"]
[Black "filali-marouan"]
[Result "1/2-1/2"]
[WhiteElo "2507"]
[BlackElo "2351"]
[TimeControl "180+2"]
[EndTime "15:57:21 PDT"]
[Termination "Game drawn - insufficient material"]

1. e4 {[%clk 0:03:01.9]} 1... c6 {[%clk 0:02:58.5]} 2. c4 {[%clk 0:03:00.7]}
2... d5 {[%clk 0:03:00.4]} 3. exd5 {[%clk 0:03:01.6]} 3... cxd5 {[%clk
0:03:02.3]} 4. cxd5 {[%clk 0:03:03.5]} 4... Qxd5 {[%clk 0:03:02.7]} 5. Nc3
{[%clk 0:03:03.8]} 5... Qd8 {[%clk 0:03:03.3]} 6. d4 {[%clk 0:03:04.4]} 6... Nf6
{[%clk 0:03:03.9]} 7. Bc4 {[%clk 0:03:04.6]} 7... e6 {[%clk 0:03:03.6]} 8. Nf3
{[%clk 0:03:05.6]} 8... Be7 {[%clk 0:03:03.6]} 9. O-O {[%clk 0:03:06.5]} 9...
O-O {[%clk 0:03:04.1]} 10. Qe2 {[%clk 0:03:07.3]} 10... a6 {[%clk 0:03:05.2]}
11. Rd1 {[%clk 0:03:07.5]} 11... b5 {[%clk 0:03:06.3]} 12. Bb3 {[%clk
0:03:02.5]} 12... Bb7 {[%clk 0:03:02.1]} 13. Bg5 {[%clk 0:02:59]} 13... h6
{[%clk 0:02:57.6]} 14. Bh4 {[%clk 0:02:55.1]} 14... Nbd7 {[%clk 0:02:50.4]} 15.
Ne5 {[%clk 0:02:45.7]} 15... Nh7 {[%clk 0:02:31.1]} 16. Bxe7 {[%clk 0:02:27]}
16... Qxe7 {[%clk 0:02:30.9]} 17. Nxd7 {[%clk 0:02:26.3]} 17... Qxd7 {[%clk
0:02:30.5]} 18. d5 {[%clk 0:02:28.2]} 18... exd5 {[%clk 0:02:28.2]} 19. Nxd5
{[%clk 0:02:30.1]} 19... Rae8 {[%clk 0:01:51.8]} 20. Qh5 {[%clk 0:02:10.8]}
20... Qd6 {[%clk 0:01:27.1]} 21. Rd3 {[%clk 0:01:54.9]} 21... Re5 {[%clk
0:01:26.3]} 22. Qd1 {[%clk 0:01:49.7]} 22... Rg5 {[%clk 0:01:00.3]} 23. f4
{[%clk 0:01:42.1]} 23... Rg6 {[%clk 0:00:58.8]} 24. f5 {[%clk 0:01:38.6]} 24...
Rg5 {[%clk 0:00:56.4]} 25. h4 {[%clk 0:01:39.3]} 25... Qc5+ {[%clk 0:00:55.8]}
26. Kh2 {[%clk 0:01:26.8]} 26... Rxf5 {[%clk 0:00:56.8]} 27. Rc1 {[%clk
0:01:26.5]} 27... Qd6+ {[%clk 0:00:56.7]} 28. Kg1 {[%clk 0:01:24.7]} 28... Bxd5
{[%clk 0:00:53.3]} 29. Bxd5 {[%clk 0:01:26.1]} 29... Qb6+ {[%clk 0:00:54.2]} 30.
Kh2 {[%clk 0:01:21.5]} 30... Nf6 {[%clk 0:00:55.5]} 31. Bf3 {[%clk 0:01:21.3]}
31... h5 {[%clk 0:00:54.9]} 32. Rd6 {[%clk 0:01:19.3]} 32... Qb8 {[%clk
0:00:56]} 33. Kh1 {[%clk 0:01:15.9]} 33... Ng4 {[%clk 0:00:57.3]} 34. Bxg4
{[%clk 0:01:16.5]} 34... hxg4 {[%clk 0:00:57.7]} 35. Qxg4 {[%clk 0:01:17.1]}
35... Qxd6 {[%clk 0:00:42.8]} 36. Qxf5 {[%clk 0:01:18.1]} 36... Qd2 {[%clk
0:00:39.5]} 37. Qc2 {[%clk 0:01:16.6]} 37... Qf4 {[%clk 0:00:39.1]} 38. Kg1
{[%clk 0:01:10.1]} 38... Rd8 {[%clk 0:00:39.3]} 39. Rf1 {[%clk 0:01:07.3]} 39...
Qxh4 {[%clk 0:00:37]} 40. Qf5 {[%clk 0:01:07.9]} 40... Qd4+ {[%clk 0:00:38.9]}
41. Kh1 {[%clk 0:01:06.1]} 41... Qd5 {[%clk 0:00:40.8]} 42. Qxd5 {[%clk
0:01:04.7]} 42... Rxd5 {[%clk 0:00:42.7]} 43. Rf2 {[%clk 0:01:06.6]} 43... f5
{[%clk 0:00:42.9]} 44. Kh2 {[%clk 0:01:07.9]} 44... Kf7 {[%clk 0:00:43.8]} 45.
g4 {[%clk 0:01:09.2]} 45... Kf6 {[%clk 0:00:45]} 46. gxf5 {[%clk 0:01:08.8]}
46... Rxf5 {[%clk 0:00:46.9]} 47. Rc2 {[%clk 0:01:10.5]} 47... a5 {[%clk
0:00:47.7]} 48. Kg3 {[%clk 0:01:10.8]} 48... Kg5 {[%clk 0:00:46.4]} 49. Rc7
{[%clk 0:01:05.6]} 49... g6 {[%clk 0:00:47.5]} 50. a3 {[%clk 0:01:06.7]} 50...
a4 {[%clk 0:00:47.9]} 51. Re7 {[%clk 0:01:04.2]} 51... Rd5 {[%clk 0:00:48.9]}
52. Re3 {[%clk 0:01:04.9]} 52... Kf5 {[%clk 0:00:50.5]} 53. Rf3+ {[%clk
0:01:05.7]} 53... Ke4 {[%clk 0:00:50.8]} 54. Rf4+ {[%clk 0:01:03.7]} 54... Kd3
{[%clk 0:00:50.5]} 55. Rb4 {[%clk 0:01:05.6]} 55... Rc5 {[%clk 0:00:46.8]} 56.
b3 {[%clk 0:01:04.2]} 56... axb3 {[%clk 0:00:44.4]} 57. Rxb3+ {[%clk 0:01:06.1]}
57... Kc4 {[%clk 0:00:43.5]} 58. Rb4+ {[%clk 0:01:07.2]} 58... Kd5 {[%clk
0:00:44.3]} 59. a4 {[%clk 0:01:05.1]} 59... Rc3+ {[%clk 0:00:44.3]} 60. Kg2
{[%clk 0:01:05.9]} 60... Rc2+ {[%clk 0:00:44.9]} 61. Kg3 {[%clk 0:01:06.1]}
61... Rc3+ {[%clk 0:00:45]} 62. Kg2 {[%clk 0:01:05.9]} 62... bxa4 {[%clk
0:00:42.8]} 63. Rxa4 {[%clk 0:01:06.8]} 63... Ke5 {[%clk 0:00:43.8]} 64. Ra5+
{[%clk 0:01:07.5]} 64... Kf6 {[%clk 0:00:29.8]} 65. Ra2 {[%clk 0:01:09.4]} 65...
Kg5 {[%clk 0:00:27.7]} 66. Rf2 {[%clk 0:01:11.3]} 66... Kh5 {[%clk 0:00:28.5]}
67. Ra2 {[%clk 0:01:10.1]} 67... g5 {[%clk 0:00:28.3]} 68. Rf2 {[%clk
0:01:11.6]} 68... Kh4 {[%clk 0:00:28.1]} 69. Ra2 {[%clk 0:01:10.8]} 69... g4
{[%clk 0:00:27.3]} 70. Rd2 {[%clk 0:01:08.8]} 70... Rg3+ {[%clk 0:00:26.2]} 71.
Kh2 {[%clk 0:01:09.3]} 71... Rh3+ {[%clk 0:00:16.8]} 72. Kg2 {[%clk 0:01:09]}
72... Rg3+ {[%clk 0:00:18.2]} 73. Kh2 {[%clk 0:01:10]} 73... Rf3 {[%clk
0:00:19.7]} 74. Ra2 {[%clk 0:01:09.9]} 74... Rf4 {[%clk 0:00:20.1]} 75. Kg2
{[%clk 0:01:05.3]} 75... Rc4 {[%clk 0:00:19.7]} 76. Rb2 {[%clk 0:01:05.4]} 76...
Rd4 {[%clk 0:00:18]} 77. Rc2 {[%clk 0:01:05.9]} 77... Rf4 {[%clk 0:00:18.4]} 78.
Re2 {[%clk 0:01:06.6]} 78... Kg5 {[%clk 0:00:17.9]} 79. Re5+ {[%clk 0:01:06.6]}
79... Kf6 {[%clk 0:00:18.8]} 80. Ra5 {[%clk 0:01:06.9]} 80... Rc4 {[%clk
0:00:18.9]} 81. Kg3 {[%clk 0:01:07.3]} 81... Rd4 {[%clk 0:00:19.5]} 82. Rb5
{[%clk 0:01:06.9]} 82... Rc4 {[%clk 0:00:19.4]} 83. Kh4 {[%clk 0:01:08.2]} 83...
Rd4 {[%clk 0:00:20.5]} 84. Rb6+ {[%clk 0:01:07.7]} 84... Kf5 {[%clk 0:00:20.6]}
85. Rb8 {[%clk 0:01:08.7]} 85... Kf4 {[%clk 0:00:20.6]} 86. Rf8+ {[%clk
0:01:09]} 86... Ke3 {[%clk 0:00:22.1]} 87. Kg3 {[%clk 0:01:09.2]} 87... Ke2
{[%clk 0:00:22.1]} 88. Re8+ {[%clk 0:01:09.8]} 88... Kf1 {[%clk 0:00:23]} 89.
Re3 {[%clk 0:01:10]} 89... Ra4 {[%clk 0:00:21.9]} 90. Rd3 {[%clk 0:01:09.8]}
90... Re4 {[%clk 0:00:21.9]} 91. Ra3 {[%clk 0:01:10.2]} 91... Rd4 {[%clk
0:00:21.5]} 92. Ra2 {[%clk 0:01:10.5]} 92... Rc4 {[%clk 0:00:21.4]} 93. Rf2+
{[%clk 0:01:10.6]} 93... Ke1 {[%clk 0:00:21.3]} 94. Ra2 {[%clk 0:01:10.4]} 94...
Kf1 {[%clk 0:00:21.5]} 95. Kh4 {[%clk 0:01:06.5]} 95... Kg1 {[%clk 0:00:18.8]}
96. Rd2 {[%clk 0:01:04.9]} 96... Kf1 {[%clk 0:00:16.5]} 97. Kg3 {[%clk
0:01:05.4]} 97... Rc3+ {[%clk 0:00:16.4]} 98. Kxg4 {[%clk 0:01:05.7]} 98... Ra3
{[%clk 0:00:17.9]} 99. Rb2 {[%clk 0:01:05.2]} 99... Ke1 {[%clk 0:00:17.4]} 100.
Rb1+ {[%clk 0:01:04.8]} 100... Kd2 {[%clk 0:00:18.2]} 101. Rg1 {[%clk
0:01:03.9]} 101... Ke2 {[%clk 0:00:19]} 102. Rg2+ {[%clk 0:01:04.2]} 102... Kf1
{[%clk 0:00:18.5]} 103. Rg3 {[%clk 0:01:05.3]} 103... Rxg3+ {[%clk 0:00:17.9]}
104. Kxg3 {[%clk 0:01:07.2]} 1/2-1/2

[Event "*** Titled Tuesday Blitz"]
[Site "Chess.com"]
[Date "2019.09.03"]
[Round "5"]
[White "VladDobrov"]
[Black "Firouzja2003"]
[Result "1/2-1/2"]
[WhiteElo "2885"]
[BlackElo "3043"]
[TimeControl "180+2"]
[EndTime "15:58:39 PDT"]
[Termination "Game drawn by agreement"]

1. d4 {[%clk 0:03:01.9]} 1... Nf6 {[%clk 0:03:00.3]} 2. c4 {[%clk 0:03:03.4]}
2... e6 {[%clk 0:03:00.7]} 3. Nf3 {[%clk 0:03:05]} 3... d5 {[%clk 0:03:01.5]} 4.
Nc3 {[%clk 0:03:06.2]} 4... Be7 {[%clk 0:03:02.6]} 5. Bf4 {[%clk 0:03:06.9]}
5... O-O {[%clk 0:03:03.4]} 6. e3 {[%clk 0:03:08.5]} 6... Nbd7 {[%clk
0:03:02.3]} 7. a3 {[%clk 0:03:09.7]} 7... c5 {[%clk 0:02:54.6]} 8. cxd5 {[%clk
0:03:10.1]} 8... Nxd5 {[%clk 0:02:54.7]} 9. Nxd5 {[%clk 0:03:11.5]} 9... exd5
{[%clk 0:02:56.6]} 10. dxc5 {[%clk 0:03:13.3]} 10... Nxc5 {[%clk 0:02:58]} 11.
Be5 {[%clk 0:03:14.7]} 11... Bf6 {[%clk 0:02:56.2]} 12. Bxf6 {[%clk 0:03:16]}
12... Qxf6 {[%clk 0:02:57.6]} 13. Qd4 {[%clk 0:03:17.8]} 13... Qxd4 {[%clk
0:02:58.9]} 14. Nxd4 {[%clk 0:03:18.5]} 14... Bd7 {[%clk 0:02:59.5]} 15. f3
{[%clk 0:03:17.6]} 1/2-1/2

[Event "*** Titled Tuesday Blitz"]
[Site "Chess.com"]
[Date "2019.09.03"]
[Round "5"]
[White "Ar4uha"]
[Black "x-6099009240"]
[Result "1-0"]
[WhiteElo "2512"]
[BlackElo "2342"]
[TimeControl "180+2"]
[EndTime "16:00:03 PDT"]
[Termination "Ar4uha won by checkmate"]

1. e4 {[%clk 0:03:01.9]} 1... c5 {[%clk 0:02:59.5]} 2. Nf3 {[%clk 0:03:02.8]}
2... d6 {[%clk 0:03:00.5]} 3. Bb5+ {[%clk 0:03:04.1]} 3... Bd7 {[%clk
0:03:00.7]} 4. Bxd7+ {[%clk 0:03:05.6]} 4... Qxd7 {[%clk 0:03:02.6]} 5. O-O
{[%clk 0:03:07.1]} 5... Nc6 {[%clk 0:03:02.3]} 6. c3 {[%clk 0:03:08.3]} 6... Nf6
{[%clk 0:03:00.6]} 7. d4 {[%clk 0:03:09.9]} 7... cxd4 {[%clk 0:02:58.6]} 8. cxd4
{[%clk 0:03:11.8]} 8... e6 {[%clk 0:02:55.8]} 9. d5 {[%clk 0:03:12.1]} 9... exd5
{[%clk 0:02:32.1]} 10. exd5 {[%clk 0:03:13.4]} 10... Ne5 {[%clk 0:02:33.8]} 11.
Nc3 {[%clk 0:03:11.6]} 11... Be7 {[%clk 0:02:32]} 12. Nxe5 {[%clk 0:03:11.9]}
12... dxe5 {[%clk 0:02:32.6]} 13. Re1 {[%clk 0:03:13.8]} 13... Bd6 {[%clk
0:02:30.8]} 14. Bg5 {[%clk 0:03:14.8]} 14... h6 {[%clk 0:02:27.6]} 15. Bxf6
{[%clk 0:03:15.6]} 15... gxf6 {[%clk 0:02:29.5]} 16. Ne4 {[%clk 0:03:16.5]}
16... Be7 {[%clk 0:02:24.7]} 17. d6 {[%clk 0:03:15.5]} 17... Bd8 {[%clk
0:02:25.1]} 18. Nc5 {[%clk 0:03:15.9]} 18... Qb5 {[%clk 0:02:18.1]} 19. Qd5
{[%clk 0:03:12.5]} 19... Rb8 {[%clk 0:02:09.5]} 20. Rxe5+ {[%clk 0:03:12.3]}
20... fxe5 {[%clk 0:02:09.7]} 21. Qxe5+ {[%clk 0:03:14.2]} 21... Kf8 {[%clk
0:02:06.9]} 22. Qxh8# {[%clk 0:03:15.4]} 1-0

[Event "*** Titled Tuesday Blitz"]
[Site "Chess.com"]
[Date "2019.09.03"]
[Round "5"]
[White "GasconJR"]
[Black "saraswathii"]
[Result "1-0"]
[WhiteElo "2485"]
[BlackElo "2292"]
[TimeControl "180+2"]
[EndTime "16:00:23 PDT"]
[Termination "GasconJR won by resignation"]

1. Nf3 {[%clk 0:02:48.6]} 1... c5 {[%clk 0:02:58.5]} 2. e4 {[%clk 0:02:49]} 2...
e6 {[%clk 0:02:49.8]} 3. c3 {[%clk 0:02:49.3]} 3... Nf6 {[%clk 0:02:50.1]} 4. e5
{[%clk 0:02:48.4]} 4... Nd5 {[%clk 0:02:51]} 5. d4 {[%clk 0:02:50]} 5... cxd4
{[%clk 0:02:50.6]} 6. cxd4 {[%clk 0:02:49.9]} 6... Nc6 {[%clk 0:02:52.1]} 7. Nc3
{[%clk 0:02:46.6]} 7... Nxc3 {[%clk 0:02:50.8]} 8. bxc3 {[%clk 0:02:48.5]} 8...
d6 {[%clk 0:02:51.4]} 9. exd6 {[%clk 0:02:50.4]} 9... Bxd6 {[%clk 0:02:52.6]}
10. Bd3 {[%clk 0:02:51.9]} 10... O-O {[%clk 0:02:52.4]} 11. O-O {[%clk
0:02:53.5]} 11... h6 {[%clk 0:02:52.9]} 12. Qe2 {[%clk 0:02:54]} 12... Re8
{[%clk 0:02:51.2]} 13. Qe4 {[%clk 0:02:54.3]} 13... f5 {[%clk 0:02:51]} 14. Qe2
{[%clk 0:02:54.5]} 14... e5 {[%clk 0:02:49.6]} 15. Bc4+ {[%clk 0:02:50.8]} 15...
Kh8 {[%clk 0:02:48.4]} 16. Ng5 {[%clk 0:02:47]} 16... Qe7 {[%clk 0:02:25.1]} 17.
Nf7+ {[%clk 0:02:44.7]} 17... Kh7 {[%clk 0:02:25.6]} 18. Qh5 {[%clk 0:02:44.6]}
18... Be6 {[%clk 0:02:18.6]} 19. Bxe6 {[%clk 0:02:33.2]} 19... Qxe6 {[%clk
0:02:19.1]} 20. Ng5+ {[%clk 0:02:34]} 1-0

[Event "*** Titled Tuesday Blitz"]
[Site "Chess.com"]
[Date "2019.09.03"]
[Round "5"]
[White "Jahonas"]
[Black "grzechu96"]
[Result "0-1"]
[WhiteElo "2405"]
[BlackElo "2591"]
[TimeControl "180+2"]
[EndTime "16:00:38 PDT"]
[Termination "grzechu96 won by resignation"]

1. d4 {[%clk 0:03:01.9]} 1... e6 {[%clk 0:02:59.6]} 2. Nf3 {[%clk 0:03:02.3]}
2... c5 {[%clk 0:02:55.9]} 3. e3 {[%clk 0:03:03]} 3... Nf6 {[%clk 0:02:55.6]} 4.
Be2 {[%clk 0:03:04.2]} 4... Nc6 {[%clk 0:02:54.2]} 5. O-O {[%clk 0:03:04.8]}
5... d5 {[%clk 0:02:52.6]} 6. a3 {[%clk 0:03:05.8]} 6... b6 {[%clk 0:02:52.6]}
7. c4 {[%clk 0:03:05.8]} 7... cxd4 {[%clk 0:02:51.8]} 8. Nxd4 {[%clk 0:03:05.5]}
8... Nxd4 {[%clk 0:02:52.9]} 9. Qxd4 {[%clk 0:03:04.9]} 9... Bc5 {[%clk
0:02:53.5]} 10. Qh4 {[%clk 0:03:04.4]} 10... O-O {[%clk 0:02:51]} 11. b4 {[%clk
0:03:04.4]} 11... Be7 {[%clk 0:02:51.5]} 12. Qd4 {[%clk 0:02:24.4]} 12... Ne4
{[%clk 0:02:48.1]} 13. Ra2 {[%clk 0:02:15.2]} 13... Bf6 {[%clk 0:02:48.6]} 14.
Qd1 {[%clk 0:02:12.7]} 14... Bb7 {[%clk 0:02:49.6]} 15. Bb2 {[%clk 0:02:09.9]}
15... Rc8 {[%clk 0:02:44.6]} 16. Bxf6 {[%clk 0:02:03.9]} 16... Qxf6 {[%clk
0:02:46.5]} 17. cxd5 {[%clk 0:02:00.4]} 17... Bxd5 {[%clk 0:02:47.9]} 0-1

[Event "*** Titled Tuesday Blitz"]
[Site "Chess.com"]
[Date "2019.09.03"]
[Round "5"]
[White "boasovietica"]
[Black "chessking2151"]
[Result "0-1"]
[WhiteElo "2454"]
[BlackElo "2617"]
[TimeControl "180+2"]
[EndTime "16:01:26 PDT"]
[Termination "chessking2151 won by resignation"]

1. e4 {[%clk 0:03:01.9]} 1... e5 {[%clk 0:02:51.8]} 2. Nf3 {[%clk 0:03:02.5]}
2... Nc6 {[%clk 0:02:48.7]} 3. Bb5 {[%clk 0:03:03.7]} 3... a6 {[%clk 0:02:49]}
4. Ba4 {[%clk 0:03:04]} 4... Nf6 {[%clk 0:02:49.6]} 5. O-O {[%clk 0:03:04.9]}
5... Be7 {[%clk 0:02:50]} 6. Re1 {[%clk 0:03:04.2]} 6... b5 {[%clk 0:02:49.1]}
7. Bb3 {[%clk 0:03:05.4]} 7... O-O {[%clk 0:02:48.9]} 8. h3 {[%clk 0:03:06.3]}
8... Bb7 {[%clk 0:02:37.3]} 9. c3 {[%clk 0:03:00.4]} 9... d5 {[%clk 0:02:32.4]}
10. exd5 {[%clk 0:02:54.9]} 10... Nxd5 {[%clk 0:02:32.2]} 11. Nxe5 {[%clk
0:02:48.4]} 11... Nxe5 {[%clk 0:02:34.1]} 12. Rxe5 {[%clk 0:02:48.7]} 12... Nf4
{[%clk 0:02:26.5]} 13. d4 {[%clk 0:02:28.1]} 13... Nxg2 {[%clk 0:02:21.7]} 14.
Qg4 {[%clk 0:01:54.3]} 14... Nh4 {[%clk 0:02:11]} 15. Bg5 {[%clk 0:01:40.5]}
15... Bxg5 {[%clk 0:02:06.1]} 16. Rxg5 {[%clk 0:01:32.1]} 16... Qxg5 {[%clk
0:02:04.7]} 0-1

[Event "*** Titled Tuesday Blitz"]
[Site "Chess.com"]
[Date "2019.09.03"]
[Round "5"]
[White "ckgchess"]
[Black "nurgyulsalimova"]
[Result "1-0"]
[WhiteElo "2746"]
[BlackElo "2528"]
[TimeControl "180+2"]
[EndTime "16:01:29 PDT"]
[Termination "ckgchess won by resignation"]

1. e4 {[%clk 0:03:01.9]} 1... c5 {[%clk 0:02:40.9]} 2. Nf3 {[%clk 0:03:02.1]}
2... Nc6 {[%clk 0:02:25.5]} 3. Bb5 {[%clk 0:03:00.7]} 3... e6 {[%clk 0:02:24.4]}
4. O-O {[%clk 0:03:00.6]} 4... Nge7 {[%clk 0:02:24.8]} 5. b3 {[%clk 0:03:02.1]}
5... a6 {[%clk 0:02:22.1]} 6. Bxc6 {[%clk 0:03:02.9]} 6... Nxc6 {[%clk
0:02:22.8]} 7. Bb2 {[%clk 0:03:04.5]} 7... f6 {[%clk 0:02:05.5]} 8. d4 {[%clk
0:03:04.8]} 8... cxd4 {[%clk 0:02:02.8]} 9. Nxd4 {[%clk 0:03:06.7]} 9... Bc5
{[%clk 0:02:03]} 10. Qh5+ {[%clk 0:03:06.5]} 10... g6 {[%clk 0:01:43.9]} 11.
Qxc5 {[%clk 0:03:08.4]} 11... Kf7 {[%clk 0:01:33.9]} 12. Nxc6 {[%clk 0:03:04]}
12... bxc6 {[%clk 0:01:32]} 13. Nd2 {[%clk 0:03:00.1]} 13... d6 {[%clk
0:01:27.5]} 14. Qxc6 {[%clk 0:02:55]} 14... Ra7 {[%clk 0:01:28.5]} 15. Nc4
{[%clk 0:02:53.7]} 15... Rc7 {[%clk 0:01:28.1]} 16. Qxd6 {[%clk 0:02:43.5]}
16... Bd7 {[%clk 0:01:09.6]} 17. Rad1 {[%clk 0:02:36.1]} 17... Qa8 {[%clk
0:01:05.5]} 1-0